[Event "Live Chess"]
[Site "Chess.com"]
[Date "2023.05.21"]
[Round "-"]
[White "MarkLim1"]
[Black "AbilifyXL"]
[Result "0-1"]
[WhiteElo "1699"]
[BlackElo "1971"]
[TimeControl "300"]
[EndTime "5:46:27 PDT"]
[Termination "AbilifyXL won by resignation"]

1. d4 {[%clk 0:04:59.3]} 1... d5 {[%clk 0:04:58.7]} 2. c4 {[%clk 0:04:57.9]}
2... c6 {[%clk 0:04:58.1]} 3. Nf3 {[%clk 0:04:55.4]} 3... Nf6 {[%clk 0:04:56.4]}
4. e3 {[%clk 0:04:54.8]} 4... Bg4 {[%clk 0:04:55.3]} 5. Nbd2 {[%clk 0:04:53.9]}
5... e6 {[%clk 0:04:54.2]} 6. Bd3 {[%clk 0:04:53]} 6... Nbd7 {[%clk 0:04:53.3]}
7. Qc2 {[%clk 0:04:52.4]} 7... Be7 {[%clk 0:04:51.7]} 8. O-O {[%clk 0:04:51.7]}
8... O-O {[%clk 0:04:50]} 9. b3 {[%clk 0:04:51]} 9... Bh5 {[%clk 0:04:49]} 10.
Bb2 {[%clk 0:04:48.9]} 10... Bg6 {[%clk 0:04:48]} 11. e4 {[%clk 0:04:46.9]}
11... dxe4 {[%clk 0:04:45.9]} 12. Nxe4 {[%clk 0:04:46.1]} 12... Nxe4 {[%clk
0:04:45.8]} 13. Bxe4 {[%clk 0:04:44.6]} 13... Nf6 {[%clk 0:04:45.7]} 14. Bxg6
{[%clk 0:04:43.5]} 14... hxg6 {[%clk 0:04:44.7]} 15. Rad1 {[%clk 0:04:41.7]}
15... Qc7 {[%clk 0:04:43.6]} 16. Rfe1 {[%clk 0:04:39.1]} 16... Rad8 {[%clk
0:04:42.5]} 17. Ne5 {[%clk 0:04:29.2]} 17... Rfe8 {[%clk 0:04:39.3]} 18. Qe2
{[%clk 0:04:28]} 18... Bb4 {[%clk 0:04:28.2]} 19. Rf1 {[%clk 0:04:26.4]} 19...
Qa5 {[%clk 0:04:20.5]} 20. Ba1 {[%clk 0:04:21.1]} 20... Bc3 {[%clk 0:04:19]} 21.
Bxc3 {[%clk 0:04:19.6]} 21... Qxc3 {[%clk 0:04:17.9]} 22. Qd2 {[%clk 0:04:06.1]}
22... Ne4 {[%clk 0:03:51.1]} 23. Qxc3 {[%clk 0:04:04.5]} 23... Nxc3 {[%clk
0:03:50.2]} 24. Rd2 {[%clk 0:03:58.6]} 24... Rxd4 {[%clk 0:03:41.9]} 25. Rxd4
{[%clk 0:03:52.5]} 25... Ne2+ {[%clk 0:03:40.7]} 26. Kh1 {[%clk 0:03:51.6]}
26... Nxd4 {[%clk 0:03:40.6]} 27. Rd1 {[%clk 0:03:50.5]} 27... c5 {[%clk
0:03:39.6]} 28. Nd7 {[%clk 0:03:47.9]} 28... b6 {[%clk 0:03:36.9]} 29. b4 {[%clk
0:03:45.8]} 29... Rd8 {[%clk 0:03:34.2]} 30. Ne5 {[%clk 0:03:44.3]} 30... g5
{[%clk 0:03:17.6]} 31. bxc5 {[%clk 0:03:35.9]} 31... bxc5 {[%clk 0:03:17.5]} 32.
Nf3 {[%clk 0:03:34.2]} 32... f6 {[%clk 0:03:11.7]} 33. Rb1 {[%clk 0:03:28.5]}
33... Nxf3 {[%clk 0:03:09.7]} 34. gxf3 {[%clk 0:03:27.5]} 34... Rd2 {[%clk
0:03:06.9]} 35. Rb5 {[%clk 0:03:22.7]} 35... Rxa2 {[%clk 0:03:05.6]} 36. Rxc5
{[%clk 0:03:21.5]} 36... Rxf2 {[%clk 0:03:04.7]} 37. Rc8+ {[%clk 0:03:18.4]}
37... Kh7 {[%clk 0:03:03.2]} 38. c5 {[%clk 0:03:17.8]} 38... Rxf3 {[%clk
0:03:00.7]} 39. c6 {[%clk 0:03:16.9]} 39... Rc3 {[%clk 0:02:59.7]} 40. c7 {[%clk
0:03:16]} 40... a5 {[%clk 0:02:58.9]} 41. Kg1 {[%clk 0:03:14.8]} 41... a4 {[%clk
0:02:57.5]} 42. Kf2 {[%clk 0:03:14]} 42... a3 {[%clk 0:02:56.9]} 43. Ra8 {[%clk
0:03:10]} 43... Rxc7 {[%clk 0:02:54.5]} 44. Rxa3 {[%clk 0:03:09.5]} 44... e5
{[%clk 0:02:52.6]} 45. Kf3 {[%clk 0:03:08.5]} 45... Kg6 {[%clk 0:02:51.3]} 46.
Ra6 {[%clk 0:03:06.4]} 46... Rc3+ {[%clk 0:02:49.7]} 0-1

[Event "Live Chess"]
[Site "Chess.com"]
[Date "2023.05.21"]
[Round "-"]
[White "ms_lilley"]
[Black "febray_27"]
[Result "0-1"]
[WhiteElo "597"]
[BlackElo "2006"]
[TimeControl "300"]
[EndTime "5:46:29 PDT"]
[Termination "febray_27 won by checkmate"]

1. d4 {[%clk 0:04:58.1]} 1... c5 {[%clk 0:04:57.2]} 2. dxc5 {[%clk 0:04:55.9]}
2... Na6 {[%clk 0:04:56]} 3. Qd4 {[%clk 0:04:50.3]} 3... e6 {[%clk 0:04:52]} 4.
a4 {[%clk 0:04:47.6]} 4... Nf6 {[%clk 0:04:50.2]} 5. b3 {[%clk 0:04:43.5]} 5...
Bxc5 {[%clk 0:04:46.1]} 6. Qc4 {[%clk 0:04:36.8]} 6... d5 {[%clk 0:04:41.2]} 7.
Qd3 {[%clk 0:04:30.4]} 7... Nb4 {[%clk 0:04:38.7]} 8. Qb5+ {[%clk 0:04:26.6]}
8... Bd7 {[%clk 0:04:19.1]} 9. Qxb7 {[%clk 0:04:24.9]} 9... Nxc2+ {[%clk
0:04:16.8]} 10. Kd2 {[%clk 0:04:18.5]} 10... Nxa1 {[%clk 0:04:15.4]} 11. Qa6
{[%clk 0:04:12.3]} 11... Nxb3+ {[%clk 0:04:12.7]} 12. Kc2 {[%clk 0:04:10.2]}
12... Nxc1 {[%clk 0:04:10.7]} 13. Kxc1 {[%clk 0:04:08.2]} 13... O-O {[%clk
0:04:07.2]} 14. Nf3 {[%clk 0:04:06.7]} 14... Bxf2 {[%clk 0:04:00.6]} 15. h3
{[%clk 0:03:59.3]} 15... Rc8+ {[%clk 0:03:52]} 16. Kb2 {[%clk 0:03:54]} 16...
Ne4 {[%clk 0:03:38.7]} 17. Nfd2 {[%clk 0:03:51.7]} 17... Qf6+ {[%clk 0:03:32]}
18. Nc3 {[%clk 0:03:45.3]} 18... Qxc3+ {[%clk 0:03:28.5]} 19. Ka2 {[%clk
0:03:38.3]} 19... Nxd2 {[%clk 0:03:23]} 20. Qb7 {[%clk 0:03:32.3]} 20... Rb8
{[%clk 0:03:11.1]} 21. Qxb8 {[%clk 0:03:25.1]} 21... Rxb8 {[%clk 0:03:08.9]} 22.
e4 {[%clk 0:03:23.1]} 22... Qb2# {[%clk 0:03:06.3]} 0-1

[Event "Live Chess"]
[Site "Chess.com"]
[Date "2023.05.21"]
[Round "-"]
[White "1600x"]
[Black "MovebyMove"]
[Result "0-1"]
[WhiteElo "1872"]
[BlackElo "2476"]
[TimeControl "300"]
[EndTime "5:46:38 PDT"]
[Termination "MovebyMove won by checkmate"]

1. d4 {[%clk 0:04:52.9]} 1... d5 {[%clk 0:04:57.6]} 2. Nc3 {[%clk 0:04:52.7]}
2... Nf6 {[%clk 0:04:55.7]} 3. Bf4 {[%clk 0:04:50.4]} 3... c5 {[%clk 0:04:54.1]}
4. e3 {[%clk 0:04:48.4]} 4... cxd4 {[%clk 0:04:52]} 5. Nb5 {[%clk 0:04:46.3]}
5... Qa5+ {[%clk 0:04:43.7]} 6. c3 {[%clk 0:04:44.6]} 6... dxc3 {[%clk
0:04:39.2]} 7. b4 {[%clk 0:04:43]} 7... Qxb4 {[%clk 0:04:33.6]} 8. Nc7+ {[%clk
0:04:41]} 8... Kd8 {[%clk 0:04:29.6]} 9. Nxa8 {[%clk 0:04:39.8]} 9... c2+ {[%clk
0:03:55.9]} 10. Qd2 {[%clk 0:04:38]} 10... e5 {[%clk 0:03:54.3]} 11. Bxe5 {[%clk
0:04:35.8]} 11... Ne4 {[%clk 0:03:42.1]} 12. Qxb4 {[%clk 0:04:28.7]} 12... Bxb4+
{[%clk 0:03:40.3]} 13. Ke2 {[%clk 0:04:26.8]} 13... Nc6 {[%clk 0:03:38.3]} 14.
Bxg7 {[%clk 0:04:24.5]} 14... Rg8 {[%clk 0:03:35.8]} 15. f3 {[%clk 0:04:22.4]}
15... Rxg7 {[%clk 0:03:22.3]} 16. fxe4 {[%clk 0:04:20.9]} 16... Ba3 {[%clk
0:02:56.5]} 17. Kd2 {[%clk 0:04:14.2]} 17... c1=Q+ {[%clk 0:02:44.3]} 18. Rxc1
{[%clk 0:04:07.4]} 18... Bxc1+ {[%clk 0:02:41.9]} 19. Kxc1 {[%clk 0:04:05.1]}
19... dxe4 {[%clk 0:02:39.3]} 20. Ne2 {[%clk 0:03:53.3]} 20... b6 {[%clk
0:02:37.2]} 21. Ng3 {[%clk 0:03:31.9]} 21... Bb7 {[%clk 0:02:33.9]} 22. Nxb6
{[%clk 0:03:28.9]} 22... axb6 {[%clk 0:02:32.5]} 23. a4 {[%clk 0:03:26.8]} 23...
Ne5 {[%clk 0:01:58]} 24. Be2 {[%clk 0:03:22.9]} 24... Nd3+ {[%clk 0:01:40.6]}
25. Kd2 {[%clk 0:03:20.8]} 25... Nc5 {[%clk 0:01:37]} 26. Bc4 {[%clk 0:03:11.9]}
26... Nxa4 {[%clk 0:01:31.4]} 27. Rb1 {[%clk 0:03:09.2]} 27... Kc7 {[%clk
0:01:27.9]} 28. Kc2 {[%clk 0:03:07.3]} 28... Nc5 {[%clk 0:01:25.1]} 29. Kc3
{[%clk 0:03:00.1]} 29... h5 {[%clk 0:01:17.6]} 30. Nxh5 {[%clk 0:02:57.4]} 30...
Rxg2 {[%clk 0:01:16.2]} 31. h4 {[%clk 0:02:55.4]} 31... Rh2 {[%clk 0:01:13.3]}
32. Bxf7 {[%clk 0:02:53]} 32... Rxh4 {[%clk 0:01:11.8]} 33. Nf4 {[%clk
0:02:51.5]} 33... Rh2 {[%clk 0:01:07]} 34. Bc4 {[%clk 0:02:47]} 34... Bc6 {[%clk
0:00:59.7]} 35. Rg1 {[%clk 0:02:43.7]} 35... Rh6 {[%clk 0:00:50]} 36. Bd5 {[%clk
0:02:41]} 36... Bxd5 {[%clk 0:00:47.7]} 37. Kd4 {[%clk 0:02:38.6]} 37... Bc6
{[%clk 0:00:44]} 38. Kc4 {[%clk 0:02:31.5]} 38... Rd6 {[%clk 0:00:41.7]} 39.
Rg7+ {[%clk 0:02:21.1]} 39... Rd7 {[%clk 0:00:40.5]} 40. Nh5 {[%clk 0:02:15.5]}
40... Rxg7 {[%clk 0:00:38.7]} 41. Nxg7 {[%clk 0:02:10.3]} 41... Kd6 {[%clk
0:00:37.7]} 42. Kc3 {[%clk 0:02:07.8]} 42... Ne6 {[%clk 0:00:35.4]} 43. Nh5
{[%clk 0:02:01.2]} 43... Kc5 {[%clk 0:00:34.1]} 44. Nf4 {[%clk 0:01:58]} 44...
Nxf4 {[%clk 0:00:32.5]} 45. exf4 {[%clk 0:01:56.3]} 45... b5 {[%clk 0:00:28.9]}
46. f5 {[%clk 0:01:54]} 46... Bd5 {[%clk 0:00:28.2]} 47. f6 {[%clk 0:01:52.1]}
47... b4+ {[%clk 0:00:27]} 48. Kd2 {[%clk 0:01:50.4]} 48... b3 {[%clk 0:00:26]}
49. Kc3 {[%clk 0:01:45]} 49... e3 {[%clk 0:00:25.2]} 50. f7 {[%clk 0:01:43.5]}
50... Bxf7 {[%clk 0:00:23.7]} 51. Kd3 {[%clk 0:01:40.9]} 51... b2 {[%clk
0:00:22.7]} 52. Kxe3 {[%clk 0:01:39.1]} 52... b1=Q {[%clk 0:00:21.7]} 53. Kd2
{[%clk 0:01:39]} 53... Qb3 {[%clk 0:00:20.7]} 54. Ke2 {[%clk 0:01:36.3]} 54...
Kd4 {[%clk 0:00:19.9]} 55. Kd2 {[%clk 0:01:35.4]} 55... Qd3+ {[%clk 0:00:18.7]}
56. Ke1 {[%clk 0:01:33.6]} 56... Qc2 {[%clk 0:00:17.7]} 57. Kf1 {[%clk
0:01:32.2]} 57... Ke3 {[%clk 0:00:17]} 58. Kg1 {[%clk 0:01:30.3]} 58... Kf3
{[%clk 0:00:16.2]} 59. Kf1 {[%clk 0:01:27.7]} 59... Qf2# {[%clk 0:00:14.9]} 0-1

[Event "Live Chess"]
[Site "Chess.com"]
[Date "2023.05.21"]
[Round "-"]
[White "friarnator"]
[Black "Hussamalhaidar"]
[Result "1-0"]
[WhiteElo "2023"]
[BlackElo "1108"]
[TimeControl "300"]
[EndTime "5:47:11 PDT"]
[Termination "friarnator won by resignation"]

1. e4 {[%clk 0:04:58.8]} 1... Nc6 {[%clk 0:04:58.4]} 2. Nf3 {[%clk 0:04:55.5]}
2... e5 {[%clk 0:04:56.9]} 3. d4 {[%clk 0:04:54.3]} 3... exd4 {[%clk 0:04:52.5]}
4. Bc4 {[%clk 0:04:53.3]} 4... Na5 {[%clk 0:04:35.1]} 5. Qxd4 {[%clk 0:04:48.4]}
5... Nxc4 {[%clk 0:04:30.5]} 6. Qxc4 {[%clk 0:04:48.3]} 6... d6 {[%clk
0:04:23.2]} 7. O-O {[%clk 0:04:46.9]} 7... Nf6 {[%clk 0:04:19]} 8. e5 {[%clk
0:04:44]} 8... d5 {[%clk 0:03:57.8]} 9. Qh4 {[%clk 0:04:31.7]} 9... Ne4 {[%clk
0:03:44.2]} 10. Qxd8+ {[%clk 0:04:29.1]} 10... Kxd8 {[%clk 0:03:42.4]} 11. Be3
{[%clk 0:04:21.5]} 11... Bc5 {[%clk 0:03:38.8]} 12. Bxc5 {[%clk 0:04:19.4]}
12... Nxc5 {[%clk 0:03:37]} 13. Rd1 {[%clk 0:04:19.3]} 13... Be6 {[%clk
0:03:34.5]} 14. c4 {[%clk 0:04:18.5]} 14... c6 {[%clk 0:03:21.8]} 15. Nc3 {[%clk
0:04:16.8]} 15... Ke7 {[%clk 0:03:11.6]} 16. cxd5 {[%clk 0:04:15.1]} 16... cxd5
{[%clk 0:03:08.4]} 17. Nxd5+ {[%clk 0:04:15]} 17... Bxd5 {[%clk 0:03:06.6]} 18.
Rxd5 {[%clk 0:04:14.9]} 18... Ne4 {[%clk 0:03:01.8]} 19. Re1 {[%clk 0:04:10.3]}
19... Ke6 {[%clk 0:02:47.9]} 20. Rb5 {[%clk 0:03:43.9]} 20... a6 {[%clk
0:02:10.3]} 21. Rxb7 {[%clk 0:03:28.7]} 21... Rhb8 {[%clk 0:02:08.5]} 22. Rxb8
{[%clk 0:03:26.5]} 22... Rxb8 {[%clk 0:02:06.8]} 23. Rxe4 {[%clk 0:03:25.5]}
23... Rxb2 {[%clk 0:02:06.1]} 24. Re1 {[%clk 0:03:03.5]} 24... Rxa2 {[%clk
0:02:03.9]} 25. Kf1 {[%clk 0:03:01.9]} 25... a5 {[%clk 0:01:53.3]} 26. Ng5+
{[%clk 0:02:56]} 26... Kf5 {[%clk 0:01:47.2]} 27. Nxf7 {[%clk 0:02:53.9]} 27...
Kg6 {[%clk 0:01:44.9]} 28. e6 {[%clk 0:02:52.4]} 28... a4 {[%clk 0:01:39.6]} 29.
e7 {[%clk 0:02:51.6]} 29... Kxf7 {[%clk 0:01:31.6]} 30. e8=Q+ {[%clk 0:02:50.4]}
30... Kf6 {[%clk 0:01:29.3]} 31. Qe6+ {[%clk 0:02:46.5]} 1-0

[Event "Live Chess"]
[Site "Chess.com"]
[Date "2023.05.21"]
[Round "-"]
[White "SavagePawn7"]
[Black "CrypticF1"]
[Result "0-1"]
[WhiteElo "770"]
[BlackElo "460"]
[TimeControl "300"]
[EndTime "5:47:21 PDT"]
[Termination "CrypticF1 won on time"]

1. e4 {[%clk 0:04:56.7]} 1... c5 {[%clk 0:04:59.3]} 2. d4 {[%clk 0:04:54.8]}
2... Nc6 {[%clk 0:04:58.7]} 3. d5 {[%clk 0:04:53.2]} 3... Ne5 {[%clk 0:04:57.3]}
4. Nf3 {[%clk 0:04:48.1]} 4... Nxf3+ {[%clk 0:04:55.4]} 5. Qxf3 {[%clk 0:04:47]}
5... Nf6 {[%clk 0:04:53.5]} 6. Nc3 {[%clk 0:04:35.1]} 6... d6 {[%clk 0:04:51.4]}
7. Bd3 {[%clk 0:04:29.2]} 7... g6 {[%clk 0:04:46.4]} 8. Bg5 {[%clk 0:04:17.1]}
8... Bg4 {[%clk 0:04:44]} 9. Qe3 {[%clk 0:04:03.3]} 9... Bg7 {[%clk 0:04:25.7]}
10. f3 {[%clk 0:03:57.4]} 10... Bd7 {[%clk 0:04:07.4]} 11. O-O {[%clk
0:03:43.7]} 11... O-O {[%clk 0:04:00.5]} 12. Bxf6 {[%clk 0:03:24.9]} 12... Bxf6
{[%clk 0:03:51.4]} 13. f4 {[%clk 0:03:11.3]} 13... e5 {[%clk 0:03:49.9]} 14.
fxe5 {[%clk 0:03:05.6]} 14... dxe5 {[%clk 0:03:48.8]} 15. Qxc5 {[%clk
0:03:02.9]} 15... Be7 {[%clk 0:03:42.3]} 16. Qc4 {[%clk 0:02:51]} 16... f5
{[%clk 0:03:35.3]} 17. exf5 {[%clk 0:02:48.1]} 17... gxf5 {[%clk 0:03:32.3]} 18.
Rae1 {[%clk 0:02:37.4]} 18... e4 {[%clk 0:03:29.4]} 19. Nxe4 {[%clk 0:02:22.5]}
19... fxe4 {[%clk 0:03:24.1]} 20. Rxf8+ {[%clk 0:02:18.8]} 20... Qxf8 {[%clk
0:03:20.3]} 21. Rf1 {[%clk 0:02:17.5]} 21... Bf5 {[%clk 0:03:14.3]} 22. d6+
{[%clk 0:02:10.6]} 22... Qf7 {[%clk 0:03:10.7]} 23. Qxf7+ {[%clk 0:02:01.3]}
23... Kxf7 {[%clk 0:03:06.1]} 24. dxe7 {[%clk 0:01:52]} 24... Kxe7 {[%clk
0:03:02.8]} 25. Rxf5 {[%clk 0:01:34.8]} 25... exd3 {[%clk 0:03:00]} 26. cxd3
{[%clk 0:01:33.7]} 26... Rd8 {[%clk 0:02:58.9]} 27. Rf3 {[%clk 0:01:30.3]} 27...
b5 {[%clk 0:02:56.5]} 28. g4 {[%clk 0:01:27.7]} 28... h6 {[%clk 0:02:54]} 29.
Kg2 {[%clk 0:01:26.5]} 29... b4 {[%clk 0:02:53.2]} 30. h4 {[%clk 0:01:24.6]}
30... a5 {[%clk 0:02:51.7]} 31. Kg3 {[%clk 0:01:23.4]} 31... a4 {[%clk
0:02:45.8]} 32. g5 {[%clk 0:01:15.2]} 32... hxg5 {[%clk 0:02:44.7]} 33. hxg5
{[%clk 0:01:13.4]} 33... Rg8 {[%clk 0:02:42.6]} 34. Kg4 {[%clk 0:01:12.5]} 34...
Ke6 {[%clk 0:02:40.9]} 35. Rf6+ {[%clk 0:01:05.1]} 35... Ke5 {[%clk 0:02:33.4]}
36. b3 {[%clk 0:00:40.1]} 36... axb3 {[%clk 0:02:31.2]} 37. axb3 {[%clk
0:00:38.9]} 37... Rd8 {[%clk 0:02:22.7]} 38. Rb6 {[%clk 0:00:29.4]} 38... Rd4+
{[%clk 0:02:15.5]} 39. Kh5 {[%clk 0:00:26.2]} 39... Kf5 {[%clk 0:02:14.6]} 40.
g6 {[%clk 0:00:24.8]} 40... Rxd3 {[%clk 0:02:11.3]} 41. Rxb4 {[%clk 0:00:21.8]}
41... Rh3+ {[%clk 0:02:09.1]} 42. Rh4 {[%clk 0:00:20]} 42... Rxb3 {[%clk
0:02:06]} 43. g7 {[%clk 0:00:17.4]} 43... Rg3 {[%clk 0:02:05.7]} 44. g8=Q {[%clk
0:00:15.1]} 44... Rxg8 {[%clk 0:02:04.5]} 0-1

[Event "Live Chess"]
[Site "Chess.com"]
[Date "2023.05.21"]
[Round "-"]
[White "gmnorfolk"]
[Black "NotHarryV"]
[Result "1-0"]
[WhiteElo "2141"]
[BlackElo "1505"]
[TimeControl "300"]
[EndTime "5:47:26 PDT"]
[Termination "gmnorfolk won by resignation"]

1. d4 {[%clk 0:04:57.6]} 1... Nf6 {[%clk 0:04:58]} 2. c4 {[%clk 0:04:50.8]} 2...
e6 {[%clk 0:04:57.3]} 3. Nc3 {[%clk 0:04:49.1]} 3... Bb4 {[%clk 0:04:56.4]} 4.
e3 {[%clk 0:04:47.8]} 4... c5 {[%clk 0:04:54.9]} 5. Ne2 {[%clk 0:04:45.7]} 5...
O-O {[%clk 0:04:53]} 6. a3 {[%clk 0:04:43.2]} 6... Bxc3+ {[%clk 0:04:51.5]} 7.
Nxc3 {[%clk 0:04:43.1]} 7... cxd4 {[%clk 0:04:49.9]} 8. exd4 {[%clk 0:04:42.4]}
8... d5 {[%clk 0:04:47.5]} 9. c5 {[%clk 0:04:41.7]} 9... b6 {[%clk 0:04:44]} 10.
b4 {[%clk 0:04:40.3]} 10... bxc5 {[%clk 0:04:37.4]} 11. dxc5 {[%clk 0:04:34.7]}
11... a6 {[%clk 0:04:14.4]} 12. Be2 {[%clk 0:04:29.9]} 12... Bb7 {[%clk
0:04:11.7]} 13. O-O {[%clk 0:04:28.3]} 13... Qc7 {[%clk 0:04:02.8]} 14. Bg5
{[%clk 0:04:22.6]} 14... Nbd7 {[%clk 0:03:47.7]} 15. Bf3 {[%clk 0:04:18.1]}
15... Rad8 {[%clk 0:03:42.1]} 16. Re1 {[%clk 0:04:15.1]} 16... d4 {[%clk
0:03:24.8]} 17. Na4 {[%clk 0:04:08.3]} 17... Bxf3 {[%clk 0:03:10.9]} 18. Qxf3
{[%clk 0:04:05]} 18... e5 {[%clk 0:03:05.4]} 19. Bxf6 {[%clk 0:03:59.7]} 19...
Nxf6 {[%clk 0:03:04.3]} 20. Nb6 {[%clk 0:03:59.2]} 20... e4 {[%clk 0:02:51.8]}
21. Rxe4 {[%clk 0:03:55]} 21... Nxe4 {[%clk 0:02:50.5]} 22. Qxe4 {[%clk
0:03:54.8]} 22... d3 {[%clk 0:02:49.9]} 23. Rd1 {[%clk 0:03:53.1]} 23... Rfe8
{[%clk 0:02:47.2]} 24. Qg4 {[%clk 0:03:38.5]} 24... d2 {[%clk 0:02:43.1]} 25. g3
{[%clk 0:03:36]} 25... Re1+ {[%clk 0:02:40]} 26. Kg2 {[%clk 0:03:32.5]} 26...
Rxd1 {[%clk 0:02:37.8]} 27. Qxd1 {[%clk 0:03:31.1]} 27... Qe5 {[%clk 0:02:19.4]}
28. Kf1 {[%clk 0:03:15.8]} 28... Qb2 {[%clk 0:01:57.3]} 29. Nc4 {[%clk
0:03:11.2]} 29... Qc1 {[%clk 0:01:56.1]} 30. Ne3 {[%clk 0:03:07.7]} 30... Qxd1+
{[%clk 0:01:52.4]} 31. Nxd1 {[%clk 0:03:06.3]} 31... Rd3 {[%clk 0:01:52]} 32.
Ke2 {[%clk 0:03:02.4]} 32... Rxa3 {[%clk 0:01:49.6]} 33. Kxd2 {[%clk 0:02:52.1]}
33... Ra4 {[%clk 0:01:33]} 34. Kc3 {[%clk 0:02:49.9]} 34... Ra3+ {[%clk
0:01:27.5]} 35. Kc4 {[%clk 0:02:46.9]} 35... Ra1 {[%clk 0:01:21.3]} 36. Nc3
{[%clk 0:02:42.6]} 36... Re1 {[%clk 0:01:15.2]} 37. c6 {[%clk 0:02:41.4]} 37...
Re8 {[%clk 0:01:09]} 38. Kc5 {[%clk 0:02:37.6]} 38... Kf8 {[%clk 0:01:07.2]} 39.
Nd5 {[%clk 0:02:36.4]} 39... Rc8 {[%clk 0:01:02]} 40. c7 {[%clk 0:02:33.2]}
40... Ke8 {[%clk 0:00:59.4]} 41. Kc6 {[%clk 0:02:32.3]} 41... g5 {[%clk
0:00:37.7]} 42. Kb7 {[%clk 0:02:30.5]} 42... Rd8 {[%clk 0:00:25.9]} 43. cxd8=Q+
{[%clk 0:02:27.1]} 43... Kxd8 {[%clk 0:00:25.3]} 44. Kxa6 {[%clk 0:02:26.3]}
44... Kd7 {[%clk 0:00:23.5]} 45. Ka7 {[%clk 0:02:25.9]} 45... Kc6 {[%clk
0:00:22.2]} 46. Ka6 {[%clk 0:02:23.7]} 1-0

[Event "Live Chess"]
[Site "Chess.com"]
[Date "2023.05.21"]
[Round "-"]
[White "manthanit"]
[Black "Conradical12"]
[Result "0-1"]
[WhiteElo "1086"]
[BlackElo "1571"]
[TimeControl "300"]
[EndTime "5:47:44 PDT"]
[Termination "Conradical12 won by resignation"]

1. e4 {[%clk 0:04:59.3]} 1... e5 {[%clk 0:04:58.5]} 2. Nf3 {[%clk 0:04:58.8]}
2... Nc6 {[%clk 0:04:56.3]} 3. Bc4 {[%clk 0:04:58.2]} 3... Nf6 {[%clk
0:04:54.5]} 4. d3 {[%clk 0:04:56.8]} 4... Bc5 {[%clk 0:04:51.4]} 5. h3 {[%clk
0:04:49.4]} 5... O-O {[%clk 0:04:49.1]} 6. O-O {[%clk 0:04:47.7]} 6... d6 {[%clk
0:04:47.5]} 7. Be3 {[%clk 0:04:44.8]} 7... Bxe3 {[%clk 0:04:45.4]} 8. fxe3
{[%clk 0:04:43.9]} 8... Be6 {[%clk 0:04:43.7]} 9. Nbd2 {[%clk 0:04:42.5]} 9...
Qd7 {[%clk 0:04:36.2]} 10. Ng5 {[%clk 0:04:35.5]} 10... h6 {[%clk 0:04:31.2]}
11. Nxe6 {[%clk 0:04:34.6]} 11... fxe6 {[%clk 0:04:29.5]} 12. Qe2 {[%clk
0:04:16.9]} 12... d5 {[%clk 0:04:26.6]} 13. exd5 {[%clk 0:04:15.4]} 13... exd5
{[%clk 0:04:24.9]} 14. Bb3 {[%clk 0:04:14.6]} 14... Kh8 {[%clk 0:04:18.6]} 15.
a3 {[%clk 0:04:12.6]} 15... Rae8 {[%clk 0:03:59.4]} 16. Rf2 {[%clk 0:04:09.6]}
16... d4 {[%clk 0:03:55.6]} 17. e4 {[%clk 0:04:07]} 17... Na5 {[%clk 0:03:48.8]}
18. Ba2 {[%clk 0:04:05.4]} 18... Qb5 {[%clk 0:03:40.6]} 19. Nb3 {[%clk
0:04:00.6]} 19... Nxb3 {[%clk 0:03:36]} 20. Bxb3 {[%clk 0:03:59.4]} 20... a5
{[%clk 0:03:26.9]} 21. Raf1 {[%clk 0:03:57]} 21... a4 {[%clk 0:03:22.2]} 22. Ba2
{[%clk 0:03:55.6]} 22... Qxb2 {[%clk 0:03:19.8]} 23. Bd5 {[%clk 0:03:03.9]}
23... c6 {[%clk 0:03:12.6]} 24. Rxf6 {[%clk 0:02:12.1]} 24... gxf6 {[%clk
0:03:07.8]} 25. Bxc6 {[%clk 0:02:00.8]} 25... bxc6 {[%clk 0:03:02.4]} 26. Rf5
{[%clk 0:02:00.3]} 26... Qxa3 {[%clk 0:02:56]} 27. Qh5 {[%clk 0:01:56.6]} 27...
Qc1+ {[%clk 0:02:52.4]} 28. Kh2 {[%clk 0:01:55.6]} 28... Rg8 {[%clk 0:02:46.6]}
29. Qxh6+ {[%clk 0:01:53.7]} 29... Qxh6 {[%clk 0:02:44.1]} 0-1

[Event "Live Chess"]
[Site "Chess.com"]
[Date "2023.05.21"]
[Round "-"]
[White "MartinWalker4"]
[Black "wot-not"]
[Result "1-0"]
[WhiteElo "2054"]
[BlackElo "1531"]
[TimeControl "300"]
[EndTime "5:47:51 PDT"]
[Termination "MartinWalker4 won by resignation"]

1. e4 {[%clk 0:04:55.9]} 1... e6 {[%clk 0:04:57]} 2. d4 {[%clk 0:04:53.7]} 2...
d5 {[%clk 0:04:56.2]} 3. Nd2 {[%clk 0:04:52.4]} 3... Nc6 {[%clk 0:04:53.2]} 4.
Ngf3 {[%clk 0:04:45.4]} 4... dxe4 {[%clk 0:04:51.8]} 5. Nxe4 {[%clk 0:04:43.2]}
5... Nf6 {[%clk 0:04:51]} 6. Nxf6+ {[%clk 0:04:38.8]} 6... Qxf6 {[%clk
0:04:49.3]} 7. Bd3 {[%clk 0:04:37.2]} 7... Bd7 {[%clk 0:04:43.2]} 8. Bg5 {[%clk
0:04:31.2]} 8... Qxd4 {[%clk 0:04:22.1]} 9. Nxd4 {[%clk 0:04:29.3]} 9... Nxd4
{[%clk 0:04:20.6]} 10. O-O {[%clk 0:04:22.3]} 10... f6 {[%clk 0:04:20]} 11. Qh5+
{[%clk 0:04:14.2]} 1-0